bitfinex/quotes_ETHUSD_20250518
["timestamp","ask_amount","ask_price","bid_price","bid_amount"]
[1747590312945,3.95024338,2531.5,2531.1,1.5187]
[1747590313302,3.95014237,2531.6,2531.1,5.46955025]
[1747590313617,0.21410529,2531.7,2531.1,1.5187]
[1747590313944,3.95007478,2531.6,2531.1,5.46949372]
[1747590314118,3.94998553,2531.7,2531.2,3.95066648]
[1747590314443,3.95009402,2531.6,2531.1,5.46947499]
[1747590314845,3.95025601,2531.5,2531.1,1.5187]
[1747590315160,3.95014235,2531.6,2531.1,5.46955064]
[1747590315749,0.29639984,2531.8,2531.1,1.5187]
[1747590315933,3.9510075,2531.0,2530.9,17.067]
[1747590316247,3.9510075,2531.0,2530.9,29.579]
[1747590316446,11.9510075,2531.0,2530.9,29.579]
[1747590317418,8.0,2530.9,2530.3,1.5471]
[1747590317619,8.0,2530.9,2530.0,17.06]
[1747590317620,3.95193343,2530.5,2530.4,12.512]
[1747590318367,11.95215157,2530.3,2530.2,12.513]
[1747590318541,3.95256916,2530.0,2529.9,0.46998093]
[1747590318738,16.37155813,2530.0,2529.9,0.46998093]
[1747590318940,3.95256916,2530.0,2529.9,0.46998093]
[1747590319264,24.35456916,2530.0,2529.9,0.46998093]
[1747590319463,0.21340793,2530.2,2530.0,3.95248732]
[1747590319629,12.398,2531.6,2530.5,3.95169232]
[1747590319829,12.398,2531.6,2530.1,14.11702254]
[1747590319830,3.95132096,2530.8,2530.1,5.51679659]
[1747590320048,3.95132096,2530.8,2530.2,16.46517715]
[1747590320612,9.5892,2531.2,2530.3,3.95204526]
[1747590320613,5.53990259,2531.2,2530.3,3.95204526]
[1747590320941,3.95129394,2530.9,2530.6,1.5645]
[1747590321144,0.01698897,2531.1,2529.9,17.061]
[1747590321319,3.95159196,2530.7,2530.1,3.95240076]
[1747590321643,3.9517499,2530.6,2530.2,12.514]
[1747590321837,3.9517499,2530.6,2530.3,12.514]
[1747590322045,3.95175889,2530.6,2530.4,12.514]
[1747590322955,3.95152515,2530.7,2530.4,12.514]
[1747590323169,0.29078906,2531.3,2530.6,1.5645]
[1747590323337,0.29078906,2531.3,2530.6,5.51606416]
[1747590323338,3.95076501,2531.2,2530.6,5.51606416]
[1747590323662,3.95048851,2531.4,2530.8,3.95123267]
[1747590323822,3.95048851,2531.4,2530.9,17.062]
[1747590324044,8.0,2531.4,2530.9,17.062]
[1747590324246,8.0,2531.4,2531.0,12.514]
[1747590324447,16.33027483,2531.5,2531.0,19.81770527]
[1747590324778,16.33027483,2531.5,2531.0,15.86670804]
[1747590324955,3.95052116,2531.4,2531.0,15.86670804]
[1747590325153,8.01698897,2531.4,2530.9,17.062]
[1747590325356,3.9510075,2531.0,2530.9,17.062]
[1747590325587,3.9510075,2531.0,2530.9,29.57499535]
[1747590326690,11.9510075,2531.0,2530.9,17.06099535]
[1747590326976,11.9510075,2531.0,2530.9,29.42499535]
[1747590328187,8.0,2531.0,2530.9,29.42499535]
[1747590328354,3.95074,2531.2,2530.9,29.42499535]
[1747590328548,3.95048097,2531.4,2530.9,32.36749489]
[1747590328748,3.95058356,2531.3,2530.9,29.42499535]
[1747590329546,3.96745375,2531.4,2530.9,29.42499535]
[1747590329844,3.9505503,2531.3,2530.9,29.42499535]
[1747590330269,3.95053924,2531.3,2530.9,29.42499535]
[1747590330470,3.95065033,2531.3,2530.9,17.06099535]
[1747590330772,3.9506794,2531.3,2531.0,12.364]
[1747590330972,11.9504837,2531.4,2531.0,12.364]
[1747590331877,3.95057956,2531.3,2531.0,12.364]
[1747590332178,3.95027949,2531.5,2531.0,12.364]
[1747590332349,3.95039524,2531.4,2531.0,12.364]
[1747590332545,3.95040113,2531.4,2531.0,12.364]
[1747590332861,3.95029791,2531.5,2531.0,12.364]
[1747590333067,11.95022713,2531.5,2531.0,12.364]
[1747590333274,3.95047201,2531.4,2531.0,12.364]
[1747590334387,8.0,2531.5,2531.0,16.31500536]
[1747590334388,11.95029108,2531.5,2531.0,16.31500536]
[1747590334782,3.95038987,2531.4,2531.0,12.364]
[1747590334982,11.95028969,2531.5,2531.0,16.31499428]
[1747590335282,3.95051156,2531.4,2531.1,12.364]
[1747590338280,8.0,2531.5,2531.1,12.364]
[1747590338482,3.95069532,2531.2,2531.1,12.364]
[1747590338863,11.95069532,2531.2,2531.1,12.363]
[1747590339886,0.29806306,2531.7,2531.1,12.363]
[1747590340088,3.95057036,2531.3,2531.1,12.363]
[1747590340583,3.96755933,2531.3,2531.1,12.363]
[1747590341480,3.95057036,2531.3,2531.1,12.363]
[1747590342195,0.29274706,2531.7,2531.1,12.363]
[1747590342349,12.281,2531.7,2531.1,12.363]
[1747590342553,8.0,2531.6,2531.1,12.363]
[1747590342783,3.9504989,2531.4,2531.1,12.363]
[1747590343179,3.95058016,2531.3,2531.1,12.363]
[1747590343361,3.95061249,2531.3,2531.1,12.363]
[1747590343686,3.95061249,2531.3,2530.9,17.06099535]
[1747590343884,3.95061249,2531.3,2531.0,12.363]
[1747590345185,3.95059124,2531.3,2531.0,12.363]
[1747590345483,8.0,2531.6,2531.0,12.363]
[1747590345685,3.9506669,2531.3,2531.0,12.363]
[1747590346270,3.95042052,2531.4,2531.0,12.363]
[1747590346461,3.95058302,2531.3,2531.0,16.24430955]
[1747590346790,3.95045319,2531.4,2531.0,16.24430955]
[1747590346953,3.95054422,2531.3,2531.0,16.24430955]
[1747590347153,3.95044736,2531.4,2531.0,16.24430955]
[1747590347351,3.95067454,2531.3,2531.0,16.24430955]
[1747590347806,3.95043966,2531.4,2531.0,16.24430955]
[1747590347953,3.95057325,2531.3,2531.0,16.24430955]
[1747590348688,3.95071559,2531.2,2531.0,16.24430955]
[1747590348868,3.95071559,2531.2,2531.0,12.363]
[1747590349209,11.95069532,2531.2,2531.1,12.363]
[1747590349705,11.9510075,2531.0,2530.9,17.06099535]
[1747590350008,11.9510075,2531.0,2530.9,29.42399535]
[1747590350504,11.9510075,2531.0,2530.9,17.06099535]
[1747590350653,11.9510075,2531.0,2530.9,29.42399535]
[1747590351156,11.9510075,2531.0,2530.9,17.06099535]
[1747590351494,3.95163202,2530.6,2530.5,6.01]
[1747590351703,3.95194435,2530.4,2530.3,12.363]
[1747590352002,1.87215538,2530.7,2530.3,12.363]
[1747590352003,8.0,2530.7,2530.3,12.363]
[1747590352159,11.951576,2530.7,2530.3,12.363]
[1747590352464,11.95153708,2530.7,2530.3,12.363]
[1747590352855,8.0,2530.7,2530.3,18.34184333]
[1747590353055,16.17308611,2531.0,2530.3,14.38975555]
[1747590353256,3.95134953,2530.8,2530.3,14.38975555]
[1747590353476,16.1702606,2531.5,2530.4,5.59109167]
[1747590353683,3.95098803,2531.1,2530.5,3.9517007]
[1747590353888,3.9510311,2531.0,2530.5,2.39327065]
[1747590354108,3.95088867,2531.1,2530.5,6.34503224]
[1747590354264,3.95085335,2531.1,2530.5,2.39327065]
[1747590354604,3.95134015,2530.8,2530.4,1.6392]
[1747590354763,3.95134015,2530.8,2530.6,12.364]
[1747590355264,3.9510075,2531.0,2530.4,1.6392]
[1747590355506,3.95178818,2530.5,2530.4,12.364]
[1747590355679,11.95178818,2530.5,2530.4,12.364]
[1747590356096,3.95227614,2530.2,2530.0,17.062]
[1747590356407,3.95227614,2530.2,2530.1,12.364]
[1747590356567,3.9521691,2530.3,2530.1,12.364]
[1747590356768,3.95195695,2530.4,2530.1,12.364]
[1747590357170,8.0,2530.5,2530.1,12.364]
[1747590357368,3.95202687,2530.4,2530.1,12.364]
[1747590357712,11.95179558,2530.5,2530.1,12.364]
[1747590357997,3.95222315,2530.3,2530.1,12.364]
[1747590358199,3.95210054,2530.3,2530.2,12.202]
[1747590358503,3.95241294,2530.1,2529.7,1.17666644]
[1747590358710,3.95288165,2529.8,2529.7,1.17666644]
[1747590358892,3.95366306,2529.3,2529.2,29.73598093]
[1747590360380,3.95303301,2529.8,2529.2,29.73598093]
[1747590360604,3.95159553,2530.7,2529.4,3.95349243]
[1747590360605,3.95263219,2530.0,2529.4,3.95349243]
[1747590360913,3.95263219,2530.0,2529.3,2.97359809]
[1747590360914,3.95222034,2530.3,2529.6,3.95319418]
[1747590361207,3.95222034,2530.3,2529.7,12.204]
[1747590361208,8.0,2529.8,2529.7,12.204]
[1747590361606,8.0,2529.8,2529.2,17.064]
[1747590361607,3.95366306,2529.3,2529.2,17.064]
[1747590361820,3.95213966,2530.3,2529.2,17.064]
[1747590362022,3.95285189,2529.9,2529.3,3.95363675]
[1747590362226,8.0,2529.9,2529.3,3.95357788]
[1747590362519,8.0,2530.1,2529.2,20.14173]
[1747590362705,3.9531532,2529.7,2529.2,24.095544]
[1747590363116,3.95292306,2529.8,2529.2,24.095544]
[1747590363417,3.9527961,2529.9,2529.3,7.83496641]
[1747590363617,3.9527961,2529.9,2529.4,3.95347006]
[1747590363918,3.9527961,2529.9,2529.3,20.03990164]
[1747590364228,3.95289058,2529.8,2529.3,20.03990164]
[1747590364521,3.95304829,2529.7,2529.3,16.08630955]
[1747590364720,3.95304829,2529.7,2529.3,12.205]
[1747590364921,3.95323371,2529.6,2529.3,12.205]
[1747590365127,3.95346145,2529.5,2529.3,12.205]
[1747590365325,3.95346145,2529.5,2529.2,17.064]
[1747590365499,3.95366306,2529.3,2529.2,29.269]
[1747590366501,11.95366306,2529.3,2529.2,17.064]
[1747590368003,11.95428842,2528.9,2528.8,12.206]
[1747590368207,1.6442,2529.5,2528.8,12.206]
[1747590368527,8.0,2529.1,2528.8,12.206]
[1747590368704,3.95428842,2528.9,2528.8,12.206]
[1747590368916,8.0,2529.1,2528.4,23.08]
[1747590368917,3.95476321,2528.6,2528.4,23.08]
[1747590369215,3.95476321,2528.6,2528.5,12.206]
[1747590369425,3.95491398,2528.5,2528.4,23.08]
[1747590369724,3.95491398,2528.5,2528.4,35.287]
[1747590369888,3.95491398,2528.5,2528.4,29.277]
[1747590370332,3.95491398,2528.5,2528.4,17.07]
[1747590371189,12.44215766,2528.5,2528.4,17.07]
[1747590371424,3.95553973,2528.1,2528.0,12.207]
[1747590371630,11.95553973,2528.1,2528.0,12.207]
[1747590372406,11.95566092,2528.1,2527.7,12.209]
[1747590372602,3.81505441,2529.0,2527.7,12.209]
[1747590372816,17.68880739,2528.9,2527.9,1.5356]
[1747590373023,12.123,2528.9,2528.4,3.95501463]
[1747590373238,12.121,2528.9,2528.5,13.7446]
[1747590373611,7.5139715,2529.1,2528.5,13.7446]
[1747590373817,16.07213475,2529.0,2528.5,13.7446]
[1747590374059,3.95432542,2528.9,2528.5,13.7446]
[1747590374350,3.95453336,2528.8,2528.6,12.209]
[1747590375203,3.95437185,2528.9,2528.6,12.209]
[1747590375407,16.07219171,2529.0,2528.6,12.209]
[1747590375408,3.95455504,2528.8,2528.6,12.209]
[1747590375601,3.95460117,2528.7,2528.6,12.209]
[1747590376003,3.95460117,2528.7,2528.5,12.21]
[1747590376502,3.95429088,2528.9,2528.2,1.6072]
[1747590376503,3.95504283,2528.5,2528.2,1.6072]
[1747590376707,3.95478309,2528.6,2528.3,12.21]
[1747590376919,3.95471144,2528.7,2528.3,12.21]
[1747590377107,12.101,2528.7,2528.4,3.9549976]
[1747590377307,12.101,2528.7,2528.4,6.12775561]
[1747590377504,8.0,2528.8,2528.4,6.12775561]
[1747590377728,11.95446315,2528.8,2528.4,2.17275801]
[1747590377936,3.95546007,2528.2,2528.0,12.21]
[1747590378145,1.573,2528.0,2527.0,5.56441348]
[1747590378345,3.95600917,2527.8,2527.3,3.95677543]
[1747590378648,12.093,2527.7,2527.3,3.95677543]
[1747590379005,12.093,2527.7,2527.2,3.95684039]
[1747590379210,3.95632426,2527.6,2527.1,12.41622494]
[1747590379440,16.04922694,2527.7,2527.2,3.95686604]
[1747590379631,12.093,2527.7,2527.2,3.95686604]
[1747590379832,12.093,2527.7,2527.3,3.95678938]
[1747590380218,1.5287,2528.4,2527.2,1.544]
[1747590380549,12.083,2528.6,2528.2,3.95528456]
[1747590380720,12.083,2528.6,2528.3,12.21]
[1747590381147,12.08,2529.0,2528.0,18.62]
[1747590381310,3.95505537,2528.5,2528.0,18.62]
[1747590381621,16.03415793,2529.0,2528.1,12.212]
[1747590381810,3.95481912,2528.6,2528.1,12.212]
[1747590382016,3.95481912,2528.6,2528.1,16.1675358]
[1747590382314,3.95494836,2528.5,2528.1,12.212]
[1747590382512,3.9548369,2528.6,2528.1,12.212]
[1747590382971,3.95549189,2528.2,2528.0,17.076]
[1747590383272,3.95553973,2528.1,2528.0,17.076]
[1747590383470,0.01698897,2528.3,2528.0,17.076]
[1747590383471,12.068,2528.3,2528.0,17.076]
[1747590383752,3.95553973,2528.1,2528.0,17.076]
[1747590384959,3.95600917,2527.8,2527.7,12.213]
[1747590386657,3.95600917,2527.8,2527.0,17.08]
[1747590386857,3.9563222,2527.6,2527.1,3.95708144]
[1747590387040,3.95648284,2527.5,2527.0,33.25023025]
[1747590387639,12.046,2527.6,2527.2,3.95684158]
[1747590387875,3.95651304,2527.5,2527.1,1.5866]
[1747590388059,5.58235488,2527.4,2527.0,17.08]
[1747590388375,12.044,2527.4,2526.9,5.48723115]
[1747590388576,12.044,2527.4,2526.9,1.5299]
[1747590388875,12.044,2527.4,2526.9,12.048]
[1747590388876,3.95737882,2527.0,2526.9,12.048]
[1747590389875,5.61411962,2527.1,2526.6,0.37114885]
[1747590390173,5.61411962,2527.1,2526.2,17.081]
[1747590390174,3.95815537,2526.5,2526.2,17.081]
[1747590390376,1.657,2527.1,2526.3,3.95832462]
[1747590390673,1.657,2527.1,2526.2,29.131]
[1747590390674,3.95813685,2526.5,2526.2,29.131]
[1747590390876,3.95820865,2526.4,2526.2,29.131]
[1747590391174,12.033,2526.6,2526.2,17.081]
[1747590391380,3.95835807,2526.3,2526.2,17.081]
[1747590392050,12.026,2526.4,2526.2,17.081]
[1747590392573,12.024,2526.5,2526.2,17.081]
[1747590392961,3.95835807,2526.3,2526.2,17.081]
[1747590394498,12.016,2526.3,2526.2,17.081]
[1747590394656,12.015,2526.4,2526.2,21.03949528]
[1747590394855,12.015,2526.4,2526.2,17.081]
[1747590395055,3.95759173,2526.8,2526.2,18.5843]
[1747590395256,3.95759173,2526.8,2526.2,22.54274598]
[1747590395581,15.96874154,2526.7,2526.2,22.54278704]
[1747590395879,12.011,2526.7,2526.2,22.54278704]
[1747590396083,15.96876956,2526.7,2526.2,22.54278704]
[1747590396585,12.011,2526.7,2526.2,22.54278704]
[1747590396747,15.96878823,2526.7,2526.2,22.54278704]
[1747590396948,12.011,2526.7,2526.2,29.134]
[1747590397173,3.95835807,2526.3,2526.2,17.081]
[1747590397679,5.61535807,2526.3,2526.2,17.081]
[1747590399466,3.95914165,2525.8,2525.7,12.054]
[1747590399775,15.94785122,2526.0,2525.7,12.054]
[1747590399970,3.95914165,2525.8,2525.7,12.054]
[1747590400362,3.95870306,2526.1,2525.7,12.054]
[1747590400564,11.986,2526.0,2525.7,12.054]
[1747590400766,11.984,2526.6,2526.0,3.95873321]
[1747590400976,3.95822871,2526.4,2525.9,3.95889282]
[1747590401496,3.95806963,2526.5,2526.0,3.95873672]
[1747590401897,3.95754414,2526.9,2526.1,1.5619]
[1747590402198,1.6618,2527.4,2526.1,1.5619]
[1747590402369,15.93426907,2527.0,2526.3,3.9582441]
[1747590402701,3.95811277,2526.5,2526.1,1.5619]
[1747590402874,3.95811277,2526.5,2526.3,12.055]
[1747590403262,3.95832226,2526.4,2525.8,5.52092476]
[1747590403462,3.95832226,2526.4,2526.3,12.055]
[1747590404485,3.95811165,2526.5,2526.3,12.055]
[1747590404817,11.964,2526.5,2526.3,12.055]
[1747590405903,15.92209952,2526.5,2526.3,12.055]
[1747590407803,3.95712238,2527.1,2526.4,5.55514479]
[1747590408005,15.90412238,2527.1,2526.4,1.5971]
[1747590408199,3.9575037,2526.9,2526.4,5.55529634]
[1747590408401,15.90168456,2527.4,2526.7,3.95762989]
[1747590408570,3.95668723,2527.4,2526.7,3.95765198]
[1747590408769,11.943,2527.3,2527.0,3.95711737]
[1747590409088,3.95573858,2528.0,2527.0,3.95711737]
[1747590409089,11.942,2527.6,2527.1,16.01309015]
[1747590409287,15.89842111,2527.6,2527.1,16.01309015]
[1747590409483,15.89842111,2527.6,2527.1,12.056]
[1747590409798,3.95642111,2527.6,2527.1,16.01306139]
[1747590410099,3.95664937,2527.4,2527.1,12.056]
[1747590410323,3.95670824,2527.4,2527.2,12.056]
[1747590410724,11.935,2527.6,2527.2,12.056]
[1747590411007,15.88642467,2527.6,2527.2,12.056]
[1747590411171,3.9565358,2527.5,2527.2,12.056]
[1747590411501,11.93,2527.6,2527.3,12.054]
[1747590411870,15.88632614,2527.6,2527.3,12.054]
[1747590412071,3.95623871,2527.7,2527.3,12.054]
[1747590412601,3.95632909,2527.6,2527.3,12.054]
[1747590412905,3.95627434,2527.7,2527.3,12.054]
[1747590413117,3.95641538,2527.6,2527.3,12.054]
[1747590413418,3.95624765,2527.7,2527.3,12.054]
[1747590413777,3.95633061,2527.6,2527.3,12.054]
[1747590415315,3.95633061,2527.6,2527.1,3.95702073]
[1747590415316,3.95692972,2527.3,2527.1,12.053]
[1747590415510,3.9569484,2527.2,2527.1,12.053]
[1747590415916,3.95710498,2527.1,2527.0,6.01]
[1747590416105,3.95773142,2526.7,2526.6,12.053]
[1747590416991,3.95804472,2526.5,2526.4,17.093]
[1747590417316,15.85404472,2526.5,2526.4,17.093]
[1747590417722,13.51381476,2526.2,2526.1,0.46998093]
[1747590417915,22.78905617,2526.2,2526.1,0.46998093]
[1747590418618,22.78905617,2526.2,2525.4,17.09]
[1747590418619,3.95882818,2526.0,2525.4,17.09]
[1747590418827,3.95961195,2525.5,2525.4,17.09]
[1747590419684,3.96062325,2524.9,2524.5,28.983]
[1747590420109,15.84240829,2525.0,2524.5,32.94417083]
[1747590420418,11.882,2524.9,2524.6,4.83958938]
[1747590420608,8.0,2525.6,2524.8,1.5893]
[1747590420808,3.959702,2525.5,2524.9,3.96052558]
[1747590421122,1.6355,2525.9,2525.0,3.96039603]
[1747590421330,11.876,2526.3,2525.2,1.5893]
[1747590421487,1.6355,2526.2,2525.3,11.895]
[1747590421824,15.83437181,2526.3,2525.8,3.95903027]
[1747590422125,0.45529479,2526.9,2525.9,11.895]
[1747590422420,0.32915283,2526.8,2526.2,1.5893]
[1747590422626,1.96465283,2526.8,2526.0,13.24738865]
[1747590422792,0.32915283,2526.8,2526.2,3.95838651]
[1747590422997,16.1547376,2526.8,2526.2,3.95838651]
[1747590423229,3.95802164,2526.6,2526.1,1.5893]
[1747590423410,3.95842828,2526.3,2526.1,11.895]
[1747590423607,1.6355,2526.4,2525.7,18.6823]
[1747590423809,11.863,2526.4,2526.0,11.895]
[1747590424114,15.82121794,2526.4,2526.0,11.895]
[1747590424525,3.95835807,2526.3,2525.7,22.64157274]
[1747590424707,11.863,2526.4,2526.1,11.895]
[1747590424907,15.82127373,2526.4,2526.1,11.895]
[1747590425420,3.9583611,2526.3,2526.1,11.895]
[1747590425920,3.95851476,2526.2,2526.1,11.895]
[1747590426321,3.95882818,2526.0,2524.8,2.05928093]
[1747590426523,3.96055289,2524.9,2524.8,0.46998093]
[1747590427586,3.96055289,2524.9,2524.8,12.36498093]
[1747590427890,3.96055289,2524.9,2524.8,11.895]
[1747590428291,3.96071547,2524.8,2524.6,0.87865014]
[1747590428493,3.96086663,2524.7,2524.6,0.87865014]
[1747590428722,3.96126628,2524.5,2524.1,11.895]
[1747590428937,3.96149427,2524.3,2524.2,11.898]
[1747590429839,11.837,2524.4,2524.2,11.898]
[1747590430014,3.96149427,2524.3,2524.1,11.898]
[1747590430432,11.837,2524.4,2523.9,18.6823]
[1747590430605,11.837,2524.4,2524.0,11.898]
[1747590430807,1.6658,2525.0,2524.0,11.898]
[1747590430989,11.83,2525.1,2524.5,3.96110007]
[1747590431194,11.83,2525.1,2524.5,11.898]
[1747590431195,3.96064958,2524.9,2524.5,11.898]
[1747590431414,3.96072546,2524.8,2524.5,11.898]
[1747590431616,3.96118665,2524.5,2524.2,11.898]
[1747590431898,8.0,2524.3,2523.4,0.005]
[1747590432099,3.96182915,2524.1,2523.5,5.47753519]
[1747590432326,3.96180816,2524.1,2523.5,1.5149]
[1747590432630,15.78491614,2524.1,2523.6,3.96259043]
[1747590432796,11.821,2524.1,2523.7,11.899]
[1747590433001,3.96252094,2523.7,2523.4,0.005]
[1747590433719,3.96203698,2524.0,2523.4,3.96789465]
[1747590433925,11.818,2523.8,2523.4,4.36468412]
[1747590434114,3.96148974,2524.4,2523.5,1.6544]
[1747590434295,8.0,2524.6,2523.9,3.96198458]
[1747590434296,15.7772563,2524.5,2523.9,3.96198458]
[1747590434498,15.77722517,2524.5,2523.9,3.96200537]
[1747590434707,11.814,2524.5,2524.1,3.96172092]
[1747590434900,3.96149427,2524.3,2524.2,11.899]
[1747590435114,3.96134668,2524.4,2524.1,11.901]
[1747590435388,3.96178902,2524.2,2523.8,17.099]
[1747590435507,11.811,2524.4,2524.0,11.901]
[1747590435839,3.9617017,2524.2,2524.1,11.901]
[1747590436045,3.9617017,2524.2,2523.8,17.099]
[1747590436046,3.96212211,2523.9,2523.8,17.099]
[1747590436216,3.96267841,2523.6,2523.4,0.005]
[1747590436397,11.809,2523.6,2523.4,0.005]
[1747590436732,15.7716123,2523.6,2523.4,0.005]
[1747590436900,11.809,2523.6,2523.4,0.005]
[1747590437101,1.5343,2524.0,2523.6,3.96245623]
[1747590437311,11.805,2523.9,2523.8,3.9622791]
[1747590437511,3.96069575,2524.9,2523.8,13.5554]
[1747590437716,3.96082022,2524.8,2524.2,3.96165009]
[1747590438235,1.5343,2525.1,2524.4,1.6544]
[1747590438438,15.7593199,2525.1,2524.5,15.86504183]
[1747590438734,3.96026069,2525.1,2524.6,3.9609723]
[1747590438903,3.96024046,2525.1,2524.6,3.9609723]
[1747590439097,0.01698897,2525.0,2524.4,1.6544]
[1747590439297,3.96102352,2524.6,2524.5,11.904]
[1747590439502,3.96118043,2524.5,2524.2,11.904]
[1747590439702,11.795,2524.6,2523.9,17.102]
[1747590440098,3.96196513,2524.0,2523.5,13.5237]
[1747590440348,3.96196513,2524.0,2523.4,0.005]
[1747590440349,3.96259312,2523.6,2523.4,0.005]
[1747590440497,8.0,2523.9,2523.4,0.005]
[1747590440705,11.791,2523.9,2523.4,0.005]
[1747590441010,1.5826,2524.3,2523.4,3.96790548]
[1747590441210,3.96211773,2524.0,2523.4,3.96782592]
[1747590441410,3.96211773,2524.0,2523.4,0.005]
[1747590441611,3.96221816,2523.9,2523.4,0.005]
[1747590441811,11.787,2524.0,2523.4,1.58110012]
[1747590442020,11.787,2524.0,2523.4,5.54397896]
[1747590442232,11.785,2524.2,2523.6,3.96244775]
[1747590442608,15.74666147,2524.2,2523.7,3.96234176]
[1747590442812,1.5826,2524.6,2523.6,1.6197]
[1747590443040,3.96126315,2524.5,2523.9,3.96201519]
[1747590443201,3.96126315,2524.5,2524.0,3.96196258]
[1747590443403,3.96126315,2524.5,2524.1,11.905]
[1747590443604,11.779,2524.7,2524.2,1.6296]
[1747590443839,3.96102352,2524.6,2524.2,1.6296]
[1747590444426,11.779,2524.7,2524.0,17.107]
[1747590444648,3.96143046,2524.4,2524.0,29.012]
[1747590444945,3.96142277,2524.4,2524.0,29.012]
[1747590445345,1.5209,2524.9,2524.0,29.012]
[1747590445544,11.771,2524.7,2524.0,17.107]
[1747590445846,3.9615762,2524.3,2524.0,17.107]
[1747590446050,11.768,2524.2,2524.0,17.107]
[1747590446846,11.768,2524.2,2524.0,21.06895307]
[1747590447052,3.96104103,2524.6,2524.0,17.107]
[1747590447253,15.72418722,2524.5,2524.0,21.06891633]
[1747590447628,11.763,2524.5,2524.0,21.06891633]
[1747590447942,3.96133779,2524.4,2524.0,17.107]
[1747590448152,11.763,2524.5,2524.0,17.107]
[1747590448352,3.9622791,2523.8,2523.7,6.01]
[1747590448654,3.96275014,2523.5,2523.4,0.005]
[1747590449014,3.96196513,2524.0,2523.4,0.005]
[1747590449220,15.71775014,2523.5,2523.4,0.005]
[1747590449544,25.23865014,2523.5,2523.4,0.005]
[1747590450111,25.23865014,2523.5,2522.8,0.20650707]
[1747590450112,5.48459257,2522.9,2522.8,0.20650707]
[1747590450368,5.48459257,2522.9,2522.6,0.46998093]
[1747590450369,11.96400681,2522.7,2522.6,0.46998093]
[1747590450587,23.71300681,2522.7,2522.6,0.26347386]
[1747590450795,23.92637457,2522.7,2522.6,0.26347386]
[1747590450951,27.82718598,2522.7,2522.6,0.26347386]
[1747590451137,41.84134898,2522.7,2522.6,0.26347386]
[1747590451974,53.60134898,2522.7,2522.6,0.26347386]
[1747590452160,30.09234898,2522.7,2522.6,0.26347386]
[1747590452365,3.96526428,2521.9,2521.8,0.25370502]
[1747590452572,23.70626428,2521.9,2521.8,0.25370502]
[1747590452747,25.22716428,2521.9,2521.8,0.25370502]
[1747590452953,13.48616428,2521.9,2521.8,0.25370502]
[1747590453242,25.22516428,2521.9,2521.8,0.25370502]
[1747590453666,13.48616428,2521.9,2521.8,0.25370502]
[1747590453840,25.22516428,2521.9,2521.8,0.25370502]
[1747590454272,52.90307736,2521.9,2521.8,0.25370502]
[1747590454486,51.38503692,2521.9,2521.8,0.25370502]
[1747590454776,29.33425325,2521.9,2521.8,0.25370502]
[1747590454936,16.52177184,2521.9,2521.8,0.25370502]
[1747590455144,0.21227756,2521.9,2521.8,0.25370502]
[1747590455483,15.69826428,2521.9,2521.8,0.25370502]
[1747590455688,16.16851899,2521.9,2521.8,0.25370502]
[1747590455897,27.59907569,2521.9,2521.8,0.25370502]
[1747590456043,25.21916428,2521.9,2521.8,0.25370502]
[1747590456395,42.20572069,2521.9,2521.8,0.25370502]
[1747590456899,42.20572069,2521.9,2521.8,0.0417336]
[1747590457096,30.47272069,2521.9,2521.8,0.0417336]
[1747590457296,3.96589331,2521.5,2520.1,3.96801114]
[1747590457495,1.5209,2521.0,2520.0,3.96823158]
[1747590457651,8.0,2521.4,2519.8,1.6296]
[1747590457844,8.0,2521.1,2520.5,3.96737319]
[1747590458048,3.96672471,2521.0,2520.4,15.7336178]
[1747590458377,15.69042846,2521.2,2520.6,3.96730937]
[1747590458585,15.6904604,2521.2,2520.6,3.96716278]
[1747590458756,11.722,2521.1,2520.5,1.6296]
[1747590459072,15.6875245,2521.1,2520.6,3.96721794]
[1747590459284,3.96630277,2521.3,2520.5,1.6296]
[1747590459586,15.68475318,2521.6,2521.0,3.96667653]
[1747590459786,15.68475318,2521.6,2520.6,17.123]
[1747590459787,11.719,2521.6,2520.6,17.123]
[1747590460085,3.96640729,2521.2,2520.6,17.123]
[1747590460288,3.96616602,2521.4,2520.7,11.769]
[1747590460471,3.98292704,2521.5,2520.5,5.59702894]
[1747590460472,1.63338897,2521.3,2520.5,1.6296]
[1747590460680,3.96676324,2521.0,2520.5,1.6296]
[1747590460879,1.6164,2521.3,2520.5,1.6296]
[1747590461050,11.716,2520.9,2520.6,3.96730937]
[1747590461247,11.715,2521.0,2520.5,1.6296]
[1747590461587,15.68168442,2521.0,2520.5,1.6296]
[1747590461889,11.715,2521.0,2520.5,5.59706139]
[1747590462392,3.96618584,2521.4,2520.8,3.96692147]
[1747590462590,11.712,2521.0,2520.7,3.96707908]
[1747590462767,8.0,2521.5,2520.9,3.96679832]
[1747590463085,7.93149329,2521.7,2521.3,3.96612792]
[1747590463388,7.93149329,2521.7,2521.4,3.96596983]
[1747590463683,7.93149329,2521.7,2521.0,1.6311]
[1747590463848,7.93149329,2521.7,2521.3,3.96605844]
[1747590464048,7.93149329,2521.7,2521.4,3.96604666]
[1747590464273,7.93149329,2521.7,2521.1,3.96652254]
[1747590464475,3.96496789,2522.1,2521.4,3.966031]
[1747590464664,15.66912751,2522.0,2521.3,3.96618856]
[1747590464850,3.96498214,2522.1,2521.2,0.55976225]
[1747590465080,11.703,2521.9,2521.3,3.96606159]
[1747590465279,3.96514701,2522.0,2521.3,3.96606159]
[1747590465452,11.701,2521.8,2521.4,3.9660506]
[1747590465649,11.7,2522.1,2521.7,3.96554909]
[1747590465849,11.7,2522.1,2521.7,15.73654909]
[1747590466085,1.6063,2522.6,2521.7,11.771]
[1747590466288,3.9646775,2522.3,2521.8,3.96532199]
[1747590466467,3.9646775,2522.3,2521.7,17.07506405]
[1747590466788,11.696,2522.3,2521.7,13.10956]